bitfinex/quotes_BTCUSD_20250910
["timestamp","ask_amount","ask_price","bid_price","bid_amount"]
[1757543418715,0.37049097,113900.0,113890.0,0.90023066]
[1757543419381,0.20409378,113900.0,113890.0,0.90023066]
[1757543419583,0.37049097,113900.0,113890.0,0.90023066]
[1757543421994,0.20409378,113900.0,113890.0,0.90023066]
[1757543422417,0.37049097,113900.0,113890.0,0.90023066]
[1757543423748,0.37049097,113900.0,113890.0,0.92657176]
[1757543425228,0.37049097,113900.0,113890.0,0.78065176]
[1757543425439,0.37049097,113900.0,113890.0,0.92653176]
[1757543429692,0.37049097,113900.0,113890.0,0.78065176]
[1757543429900,0.37049097,113900.0,113890.0,0.92653176]
[1757543432751,0.37049097,113900.0,113890.0,0.78065176]
[1757543432988,0.37049097,113900.0,113890.0,0.92649176]
[1757543433376,0.37546097,113900.0,113890.0,0.92649176]
[1757543433797,0.37546097,113900.0,113890.0,0.78065176]
[1757543434006,0.37546097,113900.0,113890.0,0.92649176]
[1757543434212,0.37546097,113900.0,113890.0,0.78065176]
[1757543434438,0.37546097,113900.0,113890.0,0.92649176]
[1757543436001,0.37251097,113900.0,113890.0,0.92649176]
[1757543436414,0.37546097,113900.0,113890.0,0.92649176]
[1757543437993,0.37546097,113900.0,113890.0,0.78065176]
[1757543438268,0.37546097,113900.0,113890.0,0.92649176]
[1757543440336,0.37546097,113900.0,113890.0,0.78065176]
[1757543440537,0.56454816,113900.0,113890.0,0.75231066]
[1757543441136,1.07094535,113900.0,113890.0,0.47906013]
[1757543441356,1.08989686,113900.0,113890.0,0.42490013]
[1757543441576,1.08989686,113900.0,113890.0,0.21434013]
[1757543442406,0.92349967,113900.0,113890.0,0.21434013]
[1757543443194,0.92349967,113900.0,113890.0,0.06850013]
[1757543443357,0.92349967,113900.0,113890.0,0.21434013]
[1757543443564,0.92349967,113900.0,113890.0,0.06850013]
[1757543443769,1.08989686,113900.0,113890.0,0.21434013]
[1757543444008,0.92349967,113900.0,113890.0,0.21434013]
[1757543444489,1.08989686,113900.0,113890.0,0.21434013]
[1757543445296,0.92349967,113900.0,113890.0,0.21434013]
[1757543449091,0.92349967,113900.0,113890.0,0.41434013]
[1757543451112,0.59070529,113900.0,113890.0,0.41434013]
[1757543451319,0.92349967,113900.0,113890.0,0.41434013]
[1757543454527,0.59070529,113900.0,113890.0,0.41434013]
[1757543454731,0.92349967,113900.0,113890.0,0.41434013]
[1757543461686,0.17562346,113880.0,113870.0,0.38572701]
[1757543461912,0.34696065,113880.0,113870.0,0.54274082]
[1757543462960,0.34696065,113880.0,113870.0,0.68659082]
[1757543463181,0.34696065,113880.0,113870.0,0.68759082]
[1757543463361,0.34696065,113880.0,113870.0,0.69059082]
[1757543463963,0.5154166,113880.0,113870.0,0.69059082]
[1757543464165,0.5388066,113880.0,113870.0,0.27635082]
[1757543464379,0.8788066,113880.0,113870.0,0.07150029]
[1757543464581,1.09047706,113880.0,113870.0,0.21838029]
[1757543464778,0.17769764,113870.0,113860.0,0.21056]
[1757543465037,0.54752921,113870.0,113860.0,0.36544352]
[1757543465240,0.38113202,113870.0,113860.0,0.36544352]
[1757543465443,0.40748231,113870.0,113860.0,0.36544352]
[1757543466094,0.40748231,113870.0,113860.0,0.4248]
[1757543466421,0.40758231,113870.0,113860.0,0.4248]
[1757543467035,0.40858231,113870.0,113860.0,0.4248]
[1757543467228,0.5759795,113870.0,113860.0,0.2142]
[1757543467727,0.40958231,113870.0,113860.0,0.2142]
[1757543468593,0.35421146,113870.0,113860.0,0.2142]
[1757543472457,0.8052378,113870.0,113860.0,0.06736]
[1757543472664,0.69421146,113870.0,113860.0,0.2142]
[1757543473092,0.8052378,113870.0,113860.0,0.2142]
[1757543473306,0.69421146,113870.0,113860.0,0.2142]
[1757543473520,0.71310907,113870.0,113860.0,0.2142]
[1757543474476,0.71310907,113870.0,113860.0,0.06736]
[1757543474696,0.00205876,113840.0,113830.0,0.72792701]
[1757543474915,0.29371027,113840.0,113830.0,0.48289761]
[1757543475132,0.29371027,113840.0,113830.0,0.62997761]
[1757543475133,0.31710027,113840.0,113830.0,0.62997761]
[1757543475356,0.20607393,113840.0,113830.0,0.62997761]
[1757543475564,0.34345646,113840.0,113830.0,0.62997761]
[1757543475786,0.23243012,113840.0,113830.0,0.62997761]
[1757543476003,0.23343012,113840.0,113830.0,0.62997761]
[1757543476221,0.21004012,113840.0,113830.0,0.63196761]
[1757543484819,0.32106646,113840.0,113830.0,0.63196761]
[1757543485374,0.21004012,113840.0,113830.0,0.63196761]
[1757543487264,0.22642274,113840.0,113830.0,0.62997761]
[1757543487474,0.24529731,113840.0,113830.0,0.62997761]
[1757543487677,0.35632365,113840.0,113830.0,0.63209761]
[1757543488263,0.33744908,113840.0,113830.0,0.63209761]
[1757543488492,0.35632729,113840.0,113830.0,0.63209761]
[1757543490699,0.24530095,113840.0,113830.0,0.63209761]
[1757543490902,0.35632729,113840.0,113830.0,0.63209761]
[1757543491662,0.24530095,113840.0,113830.0,0.63209761]
[1757543491859,0.35632729,113840.0,113830.0,0.63209761]
[1757543496308,0.35632729,113840.0,113830.0,0.62997761]
[1757543499232,0.24530095,113840.0,113830.0,0.62997761]
[1757543499445,0.35632729,113840.0,113830.0,0.62997761]
[1757543499685,0.35632729,113840.0,113830.0,0.62977761]
[1757543502690,0.27734159,113840.0,113830.0,0.27229761]
[1757543502893,0.26860095,113840.0,113830.0,0.41913761]
[1757543503440,0.37962729,113840.0,113830.0,0.42029761]
[1757543504456,0.40326407,113840.0,113830.0,0.42029761]
[1757543505362,0.37962729,113840.0,113830.0,0.42029761]
[1757543505778,0.26860095,113840.0,113830.0,0.42029761]
[1757543506000,0.37962729,113840.0,113830.0,0.42029761]
[1757543507479,0.37970356,113840.0,113830.0,0.42029761]
[1757543513402,0.26867722,113840.0,113830.0,0.42029761]
[1757543513611,0.37970356,113840.0,113830.0,0.42029761]
[1757543514206,0.37970368,113840.0,113830.0,0.42029761]
[1757543514406,0.25221833,113840.0,113830.0,0.42029761]
[1757543517466,0.23334012,113840.0,113830.0,0.42029761]
[1757543520229,0.21004012,113840.0,113830.0,0.42240761]
[1757543524043,0.21004012,113840.0,113830.0,0.42232761]
[1757543525019,0.21004012,113840.0,113830.0,0.42021761]
[1757543527223,0.21004012,113840.0,113830.0,0.27229761]
[1757543527431,0.21004012,113840.0,113830.0,0.42021761]
[1757543528403,0.50101971,113840.0,113830.0,4.708e-05]
[1757543528599,0.88121603,113840.0,113830.0,4.708e-05]
[1757543528801,0.17571604,113820.0,113810.0,0.18472701]
[1757543529044,0.30776375,113820.0,113810.0,0.27225053]
[1757543529245,0.44852009,113820.0,113810.0,0.15492352]
[1757543529478,0.36385578,113820.0,113810.0,0.15492352]
[1757543529683,0.36395578,113820.0,113810.0,0.15492352]
[1757543530105,0.36395578,113820.0,113810.0,0.30376352]
[1757543530543,0.40063066,113820.0,113810.0,0.30476352]
[1757543530747,0.40063066,113820.0,113810.0,0.30276352]
[1757543530966,0.40463066,113820.0,113810.0,0.30276352]
[1757543532104,0.23796683,113820.0,113810.0,0.30276352]
[1757543532458,0.20823683,113820.0,113810.0,0.42220053]
[1757543532660,0.20823683,113820.0,113810.0,0.4371723]
[1757543533234,0.21018683,113820.0,113810.0,0.4371723]
[1757543533462,0.21312683,113820.0,113810.0,0.4371723]
[1757543534750,0.40463066,113820.0,113810.0,0.13229878]
[1757543534929,0.57129449,113820.0,113810.0,0.28001878]
[1757543535307,0.40463066,113820.0,113810.0,0.28001878]
[1757543536743,0.57129449,113820.0,113810.0,0.01497177]
[1757543536991,0.57129449,113820.0,113810.0,0.16269177]
[1757543537536,0.23796683,113820.0,113810.0,0.16269177]
[1757543537781,0.40463066,113820.0,113810.0,0.16269177]
[1757543538623,0.23796683,113820.0,113810.0,0.16269177]
[1757543539035,0.40463066,113820.0,113810.0,0.16269177]
[1757543542650,0.23796683,113820.0,113810.0,0.16269177]
[1757543542847,0.40463066,113820.0,113810.0,0.16269177]
[1757543543622,0.23796683,113820.0,113810.0,0.16269177]
[1757543543807,0.40463066,113820.0,113810.0,0.16269177]
[1757543548644,0.36512658,113810.0,113790.0,1e-08]
[1757543548843,0.36512658,113810.0,113760.0,1e-08]
[1757543548844,0.36718534,113770.0,113760.0,1e-08]
[1757543549128,0.00205876,113760.0,113750.0,0.0004]
[1757543549354,0.87909514,113760.0,113750.0,0.0004]
[1757543549520,0.73133501,113760.0,113750.0,0.0004]
[1757543549985,0.75781275,113760.0,113750.0,0.0004]
[1757543550220,0.92447658,113760.0,113750.0,0.0004]
[1757543550385,0.92461711,113760.0,113750.0,0.14896]
[1757543550588,0.75795328,113760.0,113750.0,0.14896]
[1757543550793,0.59128945,113760.0,113750.0,0.14896]
[1757543551024,0.92461711,113760.0,113750.0,0.14896]
[1757543551168,0.94098149,113760.0,113750.0,0.14896]
[1757543551600,0.94298149,113760.0,113750.0,0.14896]
[1757543552483,0.96661827,113760.0,113750.0,0.14896]
[1757543554372,0.99818304,113760.0,113750.0,0.14896]
[1757543554897,0.99818304,113760.0,113750.0,0.14892]
[1757543555108,0.66485538,113760.0,113750.0,0.14892]
[1757543555314,0.99818304,113760.0,113750.0,0.14892]
[1757543555513,0.97454626,113760.0,113750.0,0.14892]
[1757543557417,1.02189342,113760.0,113750.0,0.14892]
[1757543558372,0.99032865,113760.0,113750.0,0.14892]
[1757543559393,0.94298149,113760.0,113750.0,0.14892]
[1757543560187,0.94910027,113760.0,113750.0,0.14892]
[1757543561414,1.01220424,113760.0,113750.0,0.14892]
[1757543561616,1.01220424,113760.0,113750.0,0.0004]
[1757543561819,1.03733082,113760.0,113750.0,0.14884]
[1757543562023,0.17582417,113750.0,113730.0,0.10321113]
[1757543562226,0.4474146,113750.0,113730.0,0.10321113]
[1757543562447,0.4526446,113750.0,113730.0,0.10321113]
[1757543562652,0.47912341,113750.0,113730.0,0.10321113]
[1757543563171,0.47912341,113750.0,113740.0,0.14884]
[1757543563577,0.43213489,113750.0,113740.0,0.14984]
[1757543563779,0.26547106,113750.0,113740.0,0.14984]
[1757543564000,0.43213489,113750.0,113740.0,0.14984]
[1757543564318,0.43825264,113750.0,113740.0,0.14984]
[1757543564721,0.27158881,113750.0,113740.0,0.14984]
[1757543565201,0.43825264,113750.0,113740.0,0.14984]
[1757543566014,0.43825264,113750.0,113740.0,0.1498]
[1757543566163,0.27158881,113750.0,113740.0,0.1498]
[1757543566362,0.43825264,113750.0,113740.0,0.1498]
[1757543567087,0.27158881,113750.0,113740.0,0.1498]
[1757543567285,0.43825264,113750.0,113740.0,0.1498]
[1757543567515,0.43825264,113750.0,113740.0,0.24467151]
[1757543567516,0.11692225,113750.0,113740.0,0.24467151]
[1757543567674,0.23469472,113750.0,113740.0,0.65816352]
[1757543567890,0.23675348,113750.0,113740.0,0.65816352]
[1757543568328,0.23675348,113750.0,113740.0,0.83400315]
[1757543568525,0.03742684,113750.0,113740.0,0.83400315]
[1757543568933,0.03742684,113750.0,113740.0,0.83184457]
[1757543569146,0.02106246,113750.0,113740.0,0.83184457]
[1757543569519,0.02106246,113750.0,113740.0,1.23184457]
[1757543569921,0.19688663,113750.0,113740.0,1.23184457]
[1757543574134,0.19682644,113750.0,113740.0,1.23184457]
[1757543575310,0.02100227,113750.0,113740.0,1.23184457]
[1757543575600,0.0001,113750.0,113740.0,1.57184457]
[1757543576696,0.63691971,113750.0,113740.0,0.002]
[1757543576926,0.54341061,113750.0,113740.0,0.15052]
[1757543577142,0.90685507,113750.0,113740.0,0.15252]
[1757543577360,0.90685507,113750.0,113740.0,0.004]
[1757543577573,0.90685507,113750.0,113740.0,0.15256]
[1757543578005,0.90685507,113750.0,113740.0,0.15056]
[1757543578006,0.78934368,113750.0,113740.0,0.15056]
[1757543578219,0.17583963,113740.0,113730.0,0.0204]
[1757543578428,0.49047004,113740.0,113730.0,0.16892]
[1757543578635,0.46110651,113740.0,113730.0,0.16892]
[1757543579468,0.6298291,113740.0,113730.0,0.0204]
[1757543579687,0.6299291,113740.0,113730.0,0.0204]
[1757543579865,0.6299291,113740.0,113730.0,0.16888]
[1757543580321,0.6309291,113740.0,113730.0,0.16888]
[1757543581644,0.46426527,113740.0,113730.0,0.16888]
[1757543581864,0.29760144,113740.0,113730.0,0.16888]
[1757543582281,0.49577391,113740.0,113730.0,0.16888]
[1757543582496,0.32911008,113740.0,113730.0,0.16888]
[1757543582699,0.47106391,113740.0,113730.0,0.16888]
[1757543583403,0.49577391,113740.0,113730.0,0.16888]
[1757543584080,0.49577391,113740.0,113710.0,0.17403981]
[1757543584283,0.49577391,113740.0,113650.0,0.07152137]
[1757543584284,0.51802215,113660.0,113650.0,0.07152137]
[1757543584527,0.53689945,113660.0,113650.0,0.22301137]
[1757543584734,0.00205876,113670.0,113650.0,0.62180025]
[1757543584937,0.5180912,113680.0,113670.0,0.2]
[1757543585143,0.5180912,113680.0,113670.0,0.20209]
[1757543585352,0.5180912,113680.0,113670.0,0.22804]
[1757543585562,0.1780912,113680.0,113670.0,0.22804]
[1757543585769,0.1780912,113680.0,113670.0,0.22851104]
[1757543586183,0.00215876,113680.0,113670.0,0.40445895]
[1757543586431,0.1780912,113680.0,113670.0,0.55405895]
[1757543586957,0.0001,113680.0,113670.0,0.75039246]
[1757543587169,0.51806025,113700.0,113690.0,0.21487089]
[1757543587412,0.51806025,113700.0,113690.0,1.13240441]
[1757543587643,0.51806025,113700.0,113690.0,1.13554441]
[1757543587863,0.34215876,113700.0,113690.0,1.31940048]
[1757543588780,0.34215876,113700.0,113690.0,1.32040048]
[1757543589019,0.51806025,113700.0,113690.0,1.32040048]
[1757543589280,0.17806025,113700.0,113690.0,1.14448352]
[1757543589802,0.0001,113700.0,113690.0,1.32040048]
[1757543591205,0.0001,113700.0,113690.0,1.42921047]
[1757543592249,0.0001,113700.0,113690.0,1.42821047]
[1757543592512,0.0001,113700.0,113690.0,1.42921047]
[1757543593056,0.0001,113700.0,113690.0,1.42905047]
[1757543593297,0.0001,113700.0,113690.0,1.43005047]
[1757543599995,0.0001,113700.0,113690.0,1.62065047]
[1757543600246,0.0001,113700.0,113690.0,1.59784047]
[1757543600501,0.0001,113700.0,113690.0,1.74880047]
[1757543600733,0.0001,113700.0,113690.0,1.74888047]
[1757543601192,0.17600149,113700.0,113690.0,1.59784047]
[1757543601421,0.17600149,113700.0,113690.0,1.40888047]
[1757543601648,0.17806025,113700.0,113690.0,1.23292351]
[1757543601887,0.17806025,113700.0,113690.0,1.40884047]
[1757543602559,0.17806025,113700.0,113690.0,1.23292351]
[1757543602955,0.17806025,113700.0,113690.0,1.40884047]
[1757543603541,0.17806025,113700.0,113690.0,1.25784047]
[1757543603736,0.17806025,113700.0,113690.0,1.12399352]
[1757543603964,0.17806025,113700.0,113690.0,0.89991048]
[1757543604346,0.17806025,113700.0,113690.0,1.29991048]
[1757543604903,0.17806025,113700.0,113690.0,1.29987048]
[1757543608559,0.00215876,113700.0,113690.0,1.29987048]
[1757543608787,0.00215876,113700.0,113690.0,1.32414048]
[1757543609642,0.17806025,113700.0,113690.0,1.32414048]
[1757543610937,0.00215876,113700.0,113690.0,1.32414048]
[1757543612721,0.0001,113700.0,113690.0,1.32414048]
[1757543612941,0.0001,113700.0,113690.0,1.43295047]
[1757543615469,0.0001,113700.0,113690.0,1.28211047]
[1757543615680,0.0001,113700.0,113690.0,1.43327047]
[1757543616684,0.0001,113700.0,113690.0,1.43319047]
[1757543618531,0.0001,113700.0,113690.0,1.43315047]
[1757543618723,0.0001,113700.0,113690.0,1.43307047]
[1757543619113,0.0001,113700.0,113690.0,1.28211047]
[1757543619352,0.0001,113700.0,113690.0,1.43307047]
[1757543619785,0.0001,113700.0,113690.0,1.28211047]
[1757543619975,0.0001,113700.0,113690.0,1.43307047]
[1757543622289,0.0001,113700.0,113690.0,1.43295047]
[1757543622506,0.0001,113700.0,113690.0,1.28211047]
[1757543622756,0.0001,113700.0,113690.0,1.43295047]
[1757543624887,0.0001,113700.0,113690.0,1.28211047]
[1757543625092,0.0001,113700.0,113690.0,1.43283047]
[1757543629490,0.0001,113700.0,113690.0,1.70123047]
[1757543629692,0.0001,113700.0,113690.0,1.43283047]
[1757543634742,0.0001,113700.0,113690.0,1.28211047]
[1757543634957,0.0001,113700.0,113690.0,1.43243047]
[1757543636530,0.0001,113700.0,113690.0,1.43231047]
[1757543639617,0.0001,113700.0,113690.0,1.28211047]
[1757543640165,0.0001,113700.0,113690.0,1.43215047]
[1757543643680,0.0001,113700.0,113690.0,1.28211047]
[1757543643910,0.0001,113700.0,113690.0,1.43207047]
[1757543645028,0.0001,113700.0,113690.0,1.43195047]
[1757543645507,0.0001,113700.0,113690.0,1.28211047]
[1757543645711,0.0001,113700.0,113690.0,1.43191047]
[1757543648640,0.0001,113700.0,113690.0,1.43179047]
[1757543649699,0.0001,113700.0,113690.0,1.28211047]
[1757543649887,0.0001,113700.0,113690.0,1.43179047]
[1757543650326,0.0001,113700.0,113690.0,2.13949047]
[1757543660382,0.0001,113700.0,113690.0,1.98981047]
[1757543660613,0.0001,113700.0,113690.0,2.13909047]
[1757543666217,0.0001,113700.0,113690.0,2.13893047]
[1757543667198,0.0001,113700.0,113690.0,2.13889047]
[1757543672090,0.0001,113700.0,113690.0,1.98981047]
[1757543672296,0.0001,113700.0,113690.0,2.13877047]
[1757543681192,0.0001,113700.0,113690.0,2.47877047]
[1757543681425,0.0001,113700.0,113690.0,7.06459705]
[1757543681662,0.0001,113700.0,113690.0,6.79619705]
[1757543682185,0.0001,113700.0,113690.0,6.79519705]
[1757543682876,0.0001,113700.0,113690.0,6.86189185]
[1757543683847,0.0001,113700.0,113690.0,6.86389185]
[1757543684052,0.0001,113700.0,113690.0,6.86289185]
[1757543684508,0.0001,113700.0,113690.0,6.86589185]
[1757543684952,0.0001,113700.0,113690.0,7.18223309]
[1757543686769,0.0001,113700.0,113690.0,7.62153309]
[1757543686995,0.0001,113700.0,113690.0,7.67153309]
[1757543687667,0.0001,113700.0,113690.0,7.75902309]
[1757543687871,0.0001,113700.0,113690.0,7.66653309]
[1757543688096,0.0011,113700.0,113690.0,7.67553309]
[1757543688343,0.0001,113700.0,113690.0,7.67053309]
[1757543688567,0.0011,113700.0,113690.0,7.67153309]
[1757543689926,0.0011,113700.0,113690.0,7.67453309]
[1757543690124,0.0011,113700.0,113690.0,7.70090689]
[1757543697553,0.0011,113700.0,113690.0,7.70022689]
[1757543697759,0.07051254,113730.0,113720.0,0.57610999]
[1757543697967,0.07051254,113730.0,113720.0,1.33376888]
[1757543698174,0.07051254,113730.0,113720.0,1.36354888]
[1757543698384,0.07051254,113730.0,113720.0,1.93941943]
[1757543699003,0.07065302,113730.0,113720.0,1.93941943]
[1757543699709,0.00014048,113730.0,113720.0,1.94041943]
[1757543700144,0.00014048,113730.0,113720.0,1.94051943]
[1757543700600,0.00014048,113730.0,113720.0,1.94931141]
[1757543700829,0.00014048,113730.0,113720.0,2.28931141]
[1757543701531,0.00014048,113730.0,113720.0,1.85001141]
[1757543701942,0.00014048,113730.0,113720.0,1.87638337]
[1757543703343,0.00014048,113730.0,113720.0,1.94356815]
[1757543703553,0.00014048,113730.0,113720.0,1.94344815]
[1757543706724,0.07061254,113750.0,113740.0,0.30880999]
[1757543706902,0.07061254,113750.0,113740.0,0.75517351]
[1757543706903,0.07073645,113750.0,113740.0,0.75517351]
[1757543707103,0.07073645,113750.0,113740.0,0.76052351]
[1757543707253,0.07073645,113750.0,113740.0,1.16062351]
[1757543707668,0.07073645,113750.0,113740.0,1.33646314]
[1757543708072,0.24656062,113750.0,113740.0,1.33646314]
[1757543708284,0.17604808,113750.0,113740.0,1.33646314]
[1757543708965,0.00322391,113750.0,113740.0,1.33646314]
[1757543709173,0.17904808,113750.0,113740.0,1.33646314]
[1757543710080,0.00322391,113750.0,113740.0,1.33646314]
[1757543710513,0.17904808,113750.0,113740.0,1.33646314]
[1757543712385,0.17904808,113750.0,113740.0,1.60362266]
[1757543713768,0.00322391,113750.0,113740.0,1.60362266]
[1757543714534,0.00322391,113750.0,113740.0,1.60346266]
[1757543716146,0.17904808,113750.0,113740.0,1.60346266]
[1757543716378,0.00322391,113750.0,113740.0,1.60346266]
[1757543717743,0.17904808,113750.0,113740.0,1.27978303]
[1757543717979,0.29757248,113750.0,113740.0,1.02219303]
[1757543718581,0.18638684,113750.0,113740.0,1.02219303]
[1757543718904,0.18638684,113750.0,113740.0,1.02435303]
[1757543720373,0.18638684,113750.0,113740.0,1.02219303]
[1757543722047,0.18638684,113750.0,113740.0,1.02435303]
[1757543724831,0.18638684,113750.0,113740.0,1.09179303]
[1757543725261,0.18638684,113750.0,113740.0,0.94403303]
[1757543725475,0.18638684,113750.0,113740.0,1.09195303]
[1757543727266,0.18638684,113750.0,113740.0,1.09181303]
[1757543728483,0.18638684,113750.0,113740.0,1.08979303]
[1757543729708,0.18638684,113750.0,113740.0,1.09181303]
[1757543730126,0.18324684,113750.0,113740.0,1.09181303]
[1757543734289,0.18324684,113750.0,113740.0,1.09492303]
[1757543734911,0.00528267,113750.0,113740.0,1.09492303]
[1757543735116,0.00322391,113750.0,113740.0,1.11809303]
[1757543735566,0.00322391,113750.0,113740.0,0.85093351]
[1757543735740,0.00322391,113750.0,113740.0,1.02677314]
[1757543735904,0.00222391,113750.0,113740.0,1.02677314]
[1757543736102,0.00022391,113750.0,113740.0,1.42677314]
[1757543736418,0.00122391,113750.0,113740.0,1.42677314]
[1757543745096,0.00122391,113750.0,113740.0,1.27885314]
[1757543745220,0.00122391,113750.0,113740.0,1.42657314]
[1757543748157,0.00122391,113750.0,113740.0,1.69373266]
[1757543750695,0.00122391,113750.0,113740.0,1.72010351]
[1757543758268,0.00122391,113750.0,113740.0,2.15940351]
[1757543763271,0.00122391,113750.0,113740.0,2.01168351]
[1757543763470,0.00122391,113750.0,113740.0,2.15932351]
[1757543765042,0.11240955,113750.0,113740.0,2.13615351]
[1757543765268,0.28823372,113750.0,113740.0,1.61267388]
[1757543765614,0.29022372,113750.0,113740.0,1.35828388]
[1757543766075,0.29334372,113750.0,113740.0,1.35828388]
[1757543766243,0.29022372,113750.0,113740.0,1.35828388]
[1757543766454,0.28823372,113750.0,113740.0,1.36149388]
[1757543767060,0.29022372,113750.0,113740.0,1.36149388]
[1757543768787,0.29022372,113750.0,113740.0,1.26219388]
[1757543770413,0.28823372,113750.0,113740.0,1.26219388]
[1757543772123,0.28823372,113750.0,113740.0,1.66219388]
[1757543774007,0.17704808,113750.0,113740.0,1.66219388]
[1757543774215,0.17704808,113750.0,113740.0,1.83803351]
[1757543775447,0.17903808,113750.0,113740.0,1.66219388]
[1757543775657,0.17704808,113750.0,113740.0,1.66219388]
[1757543776908,0.17704808,113750.0,113740.0,1.83803351]
[1757543782088,0.17704808,113750.0,113740.0,1.43803351]
[1757543782703,0.17704808,113750.0,113740.0,1.83803351]
[1757543785934,0.00122391,113750.0,113740.0,1.83803351]
[1757543786435,0.17704808,113750.0,113740.0,1.83803351]
[1757543787241,0.17704808,113750.0,113740.0,1.43803351]
[1757543787649,0.17704808,113750.0,113740.0,1.83803351]
[1757543789595,0.00122391,113750.0,113740.0,1.83803351]
[1757543792650,0.16651927,113760.0,113740.0,1.83803351]
[1757543792864,0.16476047,113760.0,113750.0,0.23552352]
[1757543793073,0.16476047,113760.0,113750.0,0.25557747]
[1757543794031,0.16476047,113760.0,113750.0,0.25567747]
[1757543794269,0.17075047,113760.0,113750.0,0.25274747]
[1757543794736,0.17175047,113760.0,113750.0,0.25274747]
[1757543795154,0.16976047,113760.0,113750.0,0.25567747]
[1757543796326,0.17484047,113760.0,113750.0,0.25274747]
[1757543796563,0.17175047,113760.0,113750.0,0.25274747]
[1757543797031,0.17484047,113760.0,113750.0,0.25274747]
[1757543797465,0.16976047,113760.0,113750.0,0.25274747]
[1757543797681,0.16976047,113760.0,113750.0,0.25567747]
[1757543798405,0.16976047,113760.0,113750.0,0.65567747]
[1757543798628,0.16976047,113760.0,113750.0,0.92283699]
[1757543801790,0.16976047,113760.0,113750.0,0.99027699]
[1757543804551,0.16976047,113760.0,113750.0,0.97523304]
[1757543806497,0.16976047,113760.0,113750.0,1.18603304]
[1757543808381,0.16976047,113760.0,113750.0,0.78603304]
[1757543810553,0.16976047,113760.0,113750.0,0.8124039]
[1757543815292,0.16976047,113760.0,113750.0,1.2124039]
[1757543818162,0.16976047,113760.0,113750.0,1.2120839]
[1757543820810,0.34185271,113760.0,113750.0,1.2091539]
[1757543821001,0.36642271,113760.0,113750.0,0.8070739]
[1757543822062,0.34185271,113760.0,113750.0,0.8070739]
[1757543822281,0.33872271,113760.0,113750.0,0.8092239]
[1757543822735,0.34185271,113760.0,113750.0,0.8092239]
[1757543823472,0.17505047,113760.0,113750.0,0.8092239]
[1757543825100,0.17505047,113760.0,113750.0,1.2092239]
[1757543825587,0.17192047,113760.0,113750.0,1.2092239]
[1757543826790,0.16976047,113760.0,113750.0,1.2070739]
[1757543827001,0.17192047,113760.0,113750.0,1.2092239]
[1757543827209,0.17505047,113760.0,113750.0,1.2092239]
[1757543827428,0.34185271,113760.0,113750.0,1.2092239]
[1757543828867,0.17505047,113760.0,113750.0,1.2092239]
[1757543830309,0.17505047,113760.0,113750.0,1.2070739]
[1757543832579,0.17505047,113760.0,113750.0,1.2092239]
[1757543835970,0.17192047,113760.0,113750.0,1.2092239]
[1757543836193,0.16976047,113760.0,113750.0,1.2121539]
[1757543842363,0.17192047,113760.0,113750.0,1.2092239]
[1757543845289,0.30876627,113760.0,113750.0,0.63302304]
[1757543845512,0.30876627,113760.0,113750.0,0.78070304]
[1757543845789,0.30876627,113760.0,113750.0,0.63302304]
[1757543846043,0.30876627,113760.0,113750.0,0.78070304]
[1757543846225,0.3351399,113760.0,113750.0,0.78070304]
[1757543847481,0.2239641,113760.0,113750.0,0.78070304]
[1757543847732,0.3351399,113760.0,113750.0,0.78070304]
[1757543848115,0.3351399,113760.0,113750.0,0.63302304]
[1757543848329,0.3351399,113760.0,113750.0,0.78070304]
[1757543848974,0.3351399,113760.0,113750.0,0.51354352]
[1757543853433,0.3351399,113760.0,113750.0,0.30274352]
[1757543860831,0.3351399,113760.0,113750.0,0.57114352]
[1757543867029,0.36026648,113760.0,113750.0,0.42346352]
[1757543867254,0.47144228,113760.0,113750.0,0.48358]
[1757543869848,0.81144228,113760.0,113750.0,0.06754]
[1757543870030,0.81144228,113760.0,113750.0,0.21518]
[1757543870272,0.81602841,113760.0,113750.0,0.21518]
[1757543870479,0.81602841,113760.0,113740.0,0.00047104]
[1757543870480,0.17788293,113750.0,113740.0,0.00047104]
[1757543870684,0.40023453,113750.0,113740.0,0.21555104]
[1757543870889,0.31676873,113750.0,113740.0,0.21555104]
[1757543871304,0.17794478,113710.0,113700.0,0.61431381]
[1757543871512,0.18313478,113710.0,113700.0,0.89100699]
[1757543872007,0.18313478,113710.0,113700.0,0.89306699]
[1757543872957,0.18313478,113710.0,113700.0,0.89406699]
[1757543873364,0.18413478,113710.0,113700.0,0.89906699]
[1757543875320,0.18413478,113710.0,113700.0,0.90230699]
[1757543875321,0.17894478,113710.0,113700.0,0.90230699]
[1757543876934,0.18106478,113710.0,113700.0,0.89906699]
[1757543879246,0.17894478,113710.0,113700.0,0.90230699]
[1757543880431,0.001,113710.0,113700.0,1.07820848]
[1757543880671,0.001,113710.0,113700.0,1.10167848]
[1757543880911,0.001,113710.0,113700.0,1.12805944]
[1757543882271,0.00305876,113710.0,113700.0,1.12805944]
[1757543882443,0.00305876,113710.0,113700.0,1.52805944]
[1757543884127,0.17894478,113710.0,113700.0,1.52805944]
[1757543884809,0.00305876,113710.0,113700.0,1.52805944]
[1757543885424,0.001,113710.0,113700.0,1.52805944]
[1757543885654,0.001,113710.0,113700.0,1.72805944]
[1757543885883,0.00305876,113710.0,113700.0,1.72805944]
[1757543886108,0.001,113710.0,113700.0,1.72805944]
[1757543887610,0.001,113710.0,113700.0,1.99645944]
[1757543888404,0.17688602,113710.0,113700.0,1.99645944]
[1757543891132,0.001,113710.0,113700.0,1.99645944]
[1757543891604,0.17688602,113710.0,113700.0,1.99645944]
[1757543891931,0.001,113710.0,113700.0,1.99645944]
[1757543892338,0.17688602,113710.0,113700.0,1.99645944]
[1757543894058,0.001,113710.0,113700.0,1.99645944]
[1757543894439,0.17688602,113710.0,113700.0,1.99645944]
[1757543895560,0.001,113710.0,113700.0,1.99645944]
[1757543896629,0.17688602,113710.0,113700.0,1.82055795]
[1757543897048,0.17688602,113710.0,113700.0,1.99645944]
[1757543905310,0.17688602,113710.0,113700.0,1.97298944]
[1757543906246,0.17688602,113710.0,113700.0,1.71998944]
[1757543906666,0.17688602,113710.0,113700.0,1.54408795]
[1757543907646,0.17688602,113710.0,113700.0,1.71998944]
[1757543915121,0.17688602,113710.0,113700.0,1.54408795]
[1757543919568,0.17688602,113710.0,113700.0,1.71998944]
[1757543923158,0.17688602,113710.0,113700.0,1.54408795]
[1757543924188,0.17688602,113710.0,113700.0,1.71998944]
[1757543928298,0.001,113710.0,113700.0,1.71998944]
[1757543928498,0.001,113710.0,113700.0,1.74275944]
[1757543928699,0.001,113710.0,113700.0,2.08275944]
[1757543928900,0.25724621,113730.0,113720.0,0.30880999]
[1757543929092,0.25724621,113730.0,113720.0,0.54882351]
[1757543929438,0.25724621,113730.0,113720.0,0.54892351]
[1757543929618,0.25724621,113730.0,113720.0,0.97530079]
[1757543930369,0.25724621,113730.0,113720.0,0.94892351]